[Event "CCT Chessable Masters D-I 2024"]
[Site "Online"]
[Date "2024.02.02"]
[Round "1"]
[White "LyonBeast"]
[Black "Lazavik, Denis"]
[Result "0-1"]
[ECO "A29"]
[WhiteElo "2876"]
[BlackElo "2566"]
[Annotator "TA"]
[PlyCount "114"]
[EventDate "2024.01.12"]
[EventType "k.o."]
[EventCountry "NET"]
[SourceTitle "playchess.com"]
[Source "ChessBase"]
[SourceQuality "1"]
[TimeControl "600+2"]

{[%evp 45,114,-27,-8,-26,-11,-27,-52,-45,-45,-43,-15,-37,0,-12,-7,-39,0,0,-2,-15,-15,-11,0,-19,-19,-60,-19,-49,0,-60,0,-56,-41,-31,0,0,0,0,0,0,0,-36,-11,-155,-142,-184,-154,-136,0,-81,0,-118,0,-132,-101,-140,-111,-153,-73,-212,-168,-259,-14,-435,-419,-322,-46,-389,-369,-645,-292]} 1. c4 {[%emt 0:00:04]} Nf6 {[%emt 0:03:24]} 2. Nc3 {[%emt 0:00:03]} e5 {[%emt 0:00:03]} 3. Nf3 {[%emt 0:00:03]} Nc6 {[%emt 0:00:03]} 4. g3 {[%emt 0:00:02]} d5 {[%emt 0:00:03]} 5. cxd5 {[%emt 0:00:02]} Nxd5 {[%emt 0:00:03]} 6. Bg2 {[%emt 0:00:03]} Bc5 {[%emt 0:00:02]} 7. O-O {[%emt 0:00:02]} O-O {[%emt 0:00:03]} 8. Qc2 {[%emt 0:00:03]} Nd4 {[%emt 0:00:07]} 9. Qe4 {[%emt 0:00:03]} Nxf3+ {[%emt 0:00:07]} 10. Bxf3 {[%emt 0:00:02]} Nxc3 {[%emt 0:00:03]} 11. bxc3 {[%emt 0:00:03]} Bd6 {[%emt 0:00:05]} 12. a4 {[%emt 0:00:03]} Rb8 {[%emt 0:00:06]} 13. d4 {[%emt 0:00:10]} Qf6 {[%emt 0:00:07]} 14. Qd3 {[%emt 0:00:35]} Bh3 {[%emt 0:00:07]} 15. Rd1 {[%emt 0:00:05]} b6 {[%emt 0:00:04]} 16. a5 {[%emt 0:00:05]} Rbd8 {[%emt 0:00:03]} 17. axb6 {[%emt 0:00:04]} axb6 {[%emt 0:00:03]} 18. Be3 {[%emt 0:00:07]} h6 {[%emt 0:00:04]} 19. Qb5 {[%emt 0:00:14]} Bd7 {[%emt 0:00:15]} 20. Bc6 {[%emt 0:00:09]} Bxc6 {[%emt 0:00:06]} 21. Qxc6 {[%emt 0:00:02]} exd4 {[%emt 0:00:04]} 22. cxd4 {[%emt 0:00:09]} Rfe8 {[%emt 0:00:04]} 23. Rac1 {[%emt 0:00:14]} h5 {[%emt 0:00:03]} 24. Qb5 {[%emt 0:00:17]} Qg6 {[%emt 0:00:06]} 25. Qg5 {[%emt 0:00:05]} (25. Bg5 {looks sharper.} f6 26. Bd2 Qg4 27. Qc4+) 25... Qxg5 {[%emt 0:00:10]} 26. Bxg5 {[%emt 0:00:02]} f6 {[%emt 0:00:03]} 27. Be3 {[%emt 0:00:02]} Kf7 {[%emt 0:00:03]} 28. Rc2 {[%emt 0:00:05]} Re7 {[%emt 0:00:04]} 29. Kf1 {[%emt 0:00:10]} g5 {[%emt 0:00:03]} 30. Rc6 {[%emt 0:00:10]} Rh8 {[%emt 0:00:06]} 31. d5 {[%emt 0:00:51]} h4 {[%emt 0:00:03]} 32. Kg2 {[%emt 0:00:06]} hxg3 {[%emt 0:00:04]} 33. hxg3 {[%emt 0:00:02]} Rd8 {[%emt 0:00:03]} 34. g4 {[%emt 0:00:12]} Kg6 {[%emt 0:00:04]} 35. Rh1 {[%emt 0:00:23]} Re5 {[%emt 0:00:06]} 36. Rd1 {[%emt 0:00:06]} Re7 {[%emt 0:00:06]} (36... Re4 $15 37. Rd4 Re7) 37. Rd2 {[%emt 0:00:13]} (37. Rh1 $11) 37... Be5 {[%emt 0:00:11]} (37... f5 $15 38. Rd4 Rh8 (38... f4 39. Bd2 $11)) 38. f3 {[%emt 0:00:09]} (38. d6 $11 Rxd6 (38... Bxd6 39. Bxb6 cxb6 40. Rdxd6 $11) 39. Rdxd6 Bxd6 40. Bxb6) 38... Red7 {[%emt 0:00:05]} 39. Bd4 $1 {[%emt 0:00:15]} Bxd4 {[%emt 0:00:13]} 40. Rxd4 {[%emt 0:00:02]} Rxd5 {[%emt 0:00:02]} 41. Rdc4 {[%emt 0:00:03]} Rd2 {[%emt 0:00:11]} 42. Re4 {[%emt 0:00:05]} R8d7 {[%emt 0:00:05]} 43. Kg3 {[%emt 0:00:04]} R2d6 {[%emt 0:00:04]} 44. Rc1 {[%emt 0:00:03]} (44. Rec4 $11) 44... c5 $17 {[%emt 0:00:05]} 45. Rh1 {[%emt 0:00:04]} Rh7 {[%emt 0:00:03]} 46. Rb1 {[%emt 0:00:03]} Rhd7 {[%emt 0:00:04]} (46... Rc7 $17 {...c4 would now be deadly.} 47. Kf2 c4) 47. Re8 {[%emt 0:00:03]} (47. Rh1 $1 $11 {remains equal.}) 47... Rd8 {[%emt 0:00:03]} (47... Rb7 $17 48. Rc8 Rd2) 48. Re3 {[%emt 0:00:08]} (48. Rxd8 $11 {keeps the balance.} Rxd8 49. Rxb6) 48... R8d7 {[%emt 0:00:05]} (48... Kf7 $17 49. Reb3 Rb8) 49. Ra3 {[%emt 0:00:03]} (49. Re8 $11) 49... Re7 {[%emt 0:00:04]} 50. Rb2 {[%emt 0:00:05]} Rb7 {[%emt 0:00:08]} 51. Ra6 {[%emt 0:00:06]} c4 {[%emt 0:00:03]} ({Black should try} 51... Kf7 52. Kf2 Ke6) 52. Rc2 {[%emt 0:00:09]} (52. Kf2 $17) 52... Rc6 {[%emt 0:00:02]} 53. e3 {[%emt 0:00:09]} (53. Rb2 {was necessary.}) 53... c3 $2 {[%emt 0:00:06]} (53... Rc8 $19 {And now ...b5 would win.} 54. f4 Kg7) 54. f4 $2 {[%emt 0:00:02][%mdl 8192] [#]} (54. Ra3 $11 {and White has nothing to worry.}) 54... gxf4+ $1 $19 {[%emt 0:00:03]} 55. exf4 {[%emt 0:00:02]} Rc4 $2 {[%emt 0:00:05]} ({Black should play} 55... Rd7 $19 {aiming for ...Rd2.} 56. Ra4 b5) 56. f5+ $2 {[%emt 0:00:08][%mdl 8192]} ({Only move:} 56. Ra3 $15) 56... Kg5 $19 {[%emt 0:00:09]} 57. Kf3 $2 {[%emt 0:00:03]} (57. Ra8 Rxg4+ 58. Kf3 Rf4+ (58... Kxf5 59. Rxc3 Rbg7 60. Ke2 $17) 59. Ke2) 57... Rf4+ {[%emt 0:00:04]} (57... Rxg4 $2 58. Rxc3 Rb4 (58... Kxf5 59. Rxb6 Rf4+ 60. Kg3 $11) 59. Kf2 $19) (57... Rh7 $142 58. Rc1 b5 (58... Rxg4 $2 59. Rxb6 Rh3+ 60. Kf2 $19)) 0-1

[Event "CCT Chessable Masters D-I 2024"]
[Site "Online"]
[Date "2024.02.02"]
[Round "1"]
[White "Carlsen, Magnus"]
[Black "So, Wesley"]
[Result "1/2-1/2"]
[ECO "A09"]
[WhiteElo "2830"]
[BlackElo "2757"]
[Annotator "TA"]
[PlyCount "104"]
[EventDate "2024.01.12"]
[EventType "k.o."]
[EventCountry "NET"]
[SourceTitle "playchess.com"]
[Source "ChessBase"]
[SourceQuality "1"]
[TimeControl "600+2"]

{[%evp 29,104,0,8,-50,-11,-14,-11,-15,-18,-13,-29,-14,-20,-19,-16,-17,-19,-12,0,0,0,0,0,0,0,-16,-28,-21,-29,-90,-96,-103,-106,-97,-22,-27,-22,-22,-22,-22,-22,-31,-8,-8,-8,-8,-8,-8,-8,-8,-8,-8,-8,-103,-103,-103,-103,-103,-8,-8,-8,-8,-8,-8,0,-8,-8,-8,-8,-8,-8,-8,0,-8,0,-8,0]} 1. Nf3 {[%emt 0:00:04]} d5 {[%emt 0:00:13]} 2. g3 {[%emt 0:00:01]} c5 {[%emt 0:00:05]} 3. c4 {[%emt 0:00:23]} d4 {[%emt 0:00:08]} 4. b4 {[%emt 0:00:01]} cxb4 {[%emt 0:00:13]} 5. a3 {[%emt 0:00:02]} b3 {[%emt 0:00:07]} 6. Bg2 {[%emt 0:00:12] A09: Réti Opening: 1 Nf3 d5 2 c4.} Nc6 {[%emt 0:00:04]} 7. d3 {[%emt 0:00:11]} a5 $146 {[%emt 0:00:10]} ({Predecessor:} 7... e5 8. O-O Nf6 9. Nbd2 a5 10. Qxb3 a4 11. Qb5 Ra5 12. Qb1 Bc5 13. Ng5 Be7 {0-1 Lanka,Z (2420)-Bluebaum,M (2620) AUT-chT 1819 2018 (5.4)}) 8. a4 {[%emt 0:00:23]} e5 {[%emt 0:00:06]} 9. O-O {[%emt 0:00:16]} Nf6 {[%emt 0:00:11]} 10. Qxb3 {[%emt 0:00:14]} Bb4 {[%emt 0:00:42]} 11. Ba3 {[%emt 0:00:22]} Nd7 {[%emt 0:00:23]} 12. Bxb4 {[%emt 0:00:20]} axb4 {[%emt 0:00:09]} 13. Ne1 {[%emt 0:00:29]} Nc5 {[%emt 0:00:12]} 14. Bxc6+ {[%emt 0:00:11]} bxc6 {[%emt 0:00:01]} 15. Qxb4 {[%emt 0:00:00]} Qa5 {[%emt 0:00:02]} 16. Nc2 {[%emt 0:00:54]} ({White should try} 16. Qxa5 $11 Rxa5 17. Nf3) 16... Bh3 {[%emt 0:00:06]} 17. Qxa5 {[%emt 0:00:48]} Rxa5 {[%emt 0:00:06]} 18. Re1 {[%emt 0:00:02]} Kd7 {[%emt 0:00:31]} 19. f4 {[%emt 0:00:05]} f6 {[%emt 0:00:48]} 20. fxe5 {[%emt 0:00:06]} fxe5 {[%emt 0:00:00]} 21. Nd2 {[%emt 0:00:01]} Rb8 {[%emt 0:00:36]} 22. Reb1 {[%emt 0:00:18]} Rxb1+ {[%emt 0:00:08]} 23. Nxb1 {[%emt 0:00:00]} Nb3 {[%emt 0:01:51]} (23... Nxa4 24. Nd2 Ra8 25. c5) 24. Ra3 {[%emt 0:00:03]} Nc1 {[%emt 0:00:01]} 25. Kf2 {[%emt 0:00:04]} Bg4 {[%emt 0:00:00]} 26. Nd2 {[%emt 0:00:35]} Bxe2 {[%emt 0:00:14]} 27. Ra1 {[%emt 0:00:01]} Bxd3 {[%emt 0:00:00]} 28. Rxc1 {[%emt 0:00:28]} Rxa4 {[%emt 0:00:01]} 29. Nf3 {[%emt 0:02:29]} ({Reject} 29. Ne1 Ra2 30. Nef3 e4 $17) (29. Na1 $1 $11) 29... Kd6 $17 {[%emt 0:00:13]} 30. Ncxd4 {[%emt 0:00:01]} exd4 {[%emt 0:00:02]} 31. Nxd4 {[%emt 0:00:00]} Rxc4 {[%emt 0:01:01]} ({Better is} 31... g6 $17 32. c5+ Kd5) 32. Rxc4 {[%emt 0:00:02]} Bxc4 {[%emt 0:00:00]} 33. Nf5+ {[%emt 0:00:00]} Ke5 {[%emt 0:00:01]} 34. Nxg7 {[%emt 0:00:01]} Bf7 {[%emt 0:00:03]} 35. g4 $1 {[%emt 0:00:14]} Bg6 {[%emt 0:00:01]} 36. g5 $1 {[%emt 0:00:23]} Kf4 {[%emt 0:00:42]} 37. Ne6+ {[%emt 0:00:16]} Kg4 {[%emt 0:00:02]} 38. Ke3 {[%emt 0:00:01]} Bf5 {[%emt 0:00:34]} 39. Nd8 {[%emt 0:00:05]} Bd7 {[%emt 0:00:18]} 40. Nf7 {[%emt 0:00:15]} Be8 {[%emt 0:00:04]} 41. Nd6 {[%emt 0:00:13]} (41. g6 $1 $11 hxg6 42. Nd6) 41... Bh5 $17 {[%emt 0:00:06]} ({Don't play} 41... Bg6 $6 42. Kd4 $11) 42. h4 {[%emt 0:00:15]} Kxh4 {[%emt 0:00:25]} 43. Kf4 {[%emt 0:00:02] [#]} Bg6 {[%emt 0:00:04]} (43... c5 $1 $17) 44. Nb7 $11 {[%emt 0:00:01]} Kh3 {[%emt 0:00:08]} 45. Nc5 {[%emt 0:00:02]} Kg2 {[%emt 0:00:01]} 46. Nd7 {[%emt 0:00:05]} Kh3 {[%emt 0:00:21]} 47. Nc5 {[%emt 0:00:02]} Bf7 {[%emt 0:00:02]} 48. Ne4 {[%emt 0:00:02]} Kh4 {[%emt 0:00:08]} 49. Nf6 {[%emt 0:00:05]} Bg6 {[%emt 0:00:01]} 50. Nd7 {[%emt 0:00:03]} Kh3 {[%emt 0:00:08]} 51. Nf6 {[%emt 0:00:07]} Kh4 {[%emt 0:00:08]} 52. Nd7 {[%emt 0:00:02]} Kh3 {[%emt 0:00:00]} 1/2-1/2

[Event "CCT Chessable Masters D-I 2024"]
[Site "Online"]
[Date "2024.02.02"]
[Round "1"]
[White "Bigfish"]
[Black "Firouzja, Alireza"]
[Result "1/2-1/2"]
[ECO "C65"]
[WhiteElo "2793"]
[BlackElo "2759"]
[Annotator "TA"]
[PlyCount "82"]
[EventDate "2024.01.12"]
[EventType "k.o."]
[EventCountry "NET"]
[SourceTitle "playchess.com"]
[Source "ChessBase"]
[SourceQuality "1"]
[TimeControl "600+2"]

{[%evp 9,82,18,21,8,22,16,23,0,9,-34,-31,-48,-50,-38,0,0,-16,-15,0,0,12,11,0,7,13,8,7,9,11,0,14,8,18,0,0,-39,-46,-104,-120,-119,-30,-25,0,0,0,0,0,0,0,0,0,0,0,0,0,0,0,0,0,0,0,0,0,0,0,0,0,0,0,0,0,0,0,0,0]} 1. e4 {[%emt 0:00:06]} e5 {[%emt 0:00:03]} 2. Nf3 {[%emt 0:00:01]} Nc6 {[%emt 0:00:01]} 3. Bb5 {[%emt 0:00:01]} Nf6 {[%emt 0:00:01][%cal Bg8f6,Bf6d7,Bd7c5][%mdl 32]} 4. d3 {[%emt 0:00:01]} Bc5 {[%emt 0:00:01]} 5. Bxc6 {[%emt 0:00:02]} dxc6 {[%emt 0:00:01]} 6. O-O {[%emt 0:00:13]} (6. Nxe5 $2 Qd4 7. O-O Qxe5 $19) 6... Bg4 {[%emt 0:00:32]} 7. h3 {[%emt 0:00:06]} Bh5 {[%emt 0:00:01]} 8. Be3 {[%emt 0:00:36] White has an edge.} Nd7 {[%emt 0:01:19]} 9. Bxc5 {[%emt 0:00:18]} Nxc5 {[%emt 0:00:01]} 10. g4 {[%emt 0:00:04]} Bg6 {[%emt 0:00:03]} 11. Nxe5 {[%emt 0:00:20]} Qd4 {[%emt 0:00:02]} 12. Nc3 {[%emt 0:02:18]} Qxe5 {[%emt 0:00:41]} 13. d4 {[%emt 0:00:03]} Qf4 {[%emt 0:00:45]} 14. dxc5 {[%emt 0:00:19]} h5 {[%emt 0:00:21]} (14... Bxe4 $2 15. Re1 (15. Qd4 f5 $16) 15... f5 16. gxf5 $18) 15. Kg2 {[%emt 0:00:37]} (15. Qc1 Qf3 16. g5 Qxh3 $17 (16... Bxe4 $2 17. Nxe4 O-O-O 18. Qe3 $18)) 15... Bxe4+ {[%emt 0:03:24]} 16. Nxe4 {[%emt 0:00:49]} Qxe4+ {[%emt 0:00:00]} 17. f3 {[%emt 0:00:06]} Qc4 {[%emt 0:00:41]} 18. Re1+ {[%emt 0:01:03]} Kf8 {[%emt 0:00:01]} 19. Qd2 {[%emt 0:00:54]} Qxc5 {[%emt 0:00:20]} 20. Rad1 {[%emt 0:00:07][%cal Od2d8] [#] Intending Qd8+! and mate.} Kg8 $1 {[%emt 0:00:01]} 21. b4 {[%emt 0:00:12][%mdl 1024] White has compensation.} Qc4 {[%emt 0:00:18]} 22. Re7 {[%emt 0:00:07]} Rh6 {[%emt 0:00:12] White must now prevent ...Rd6.} 23. Rde1 {[%emt 0:00:56]} (23. Qd3 $15 Qxb4 24. Qe4 Qxe4 25. fxe4) 23... Rd6 $17 {[%emt 0:00:13]} (23... Qxa2 24. Re8+ Rxe8 25. Rxe8+ Kh7 26. Qd3+ Rg6 27. Re5 $16) 24. Qg5 {[%emt 0:00:34] [#] aiming for Re8+.} Qxc2+ {[%emt 0:01:13]} ({Black should try} 24... Rd5 $17 25. Qe3 Qxb4 (25... Qxc2+ 26. Re2 $17)) 25. R1e2 $11 {[%emt 0:00:04]} Qg6 {[%emt 0:00:01]} 26. Qxg6 {[%emt 0:00:12] The position is equal.} Rxg6 {[%emt 0:00:01]} 27. Rxc7 {[%emt 0:00:00][%mdl 4096] Endgame. KRR-KRR} f5 {[%emt 0:00:11]} 28. Kg3 {[%emt 0:00:10]} hxg4 {[%emt 0:00:02]} 29. hxg4 {[%emt 0:00:02]} fxg4 {[%emt 0:00:00]} 30. fxg4 {[%emt 0:00:02]} Rd8 {[%emt 0:00:15]} 31. Rxb7 {[%emt 0:00:09]} Rd3+ {[%emt 0:00:05]} 32. Kf4 {[%emt 0:00:14][%cal Og4g5]} Rd4+ {[%emt 0:00:04]} 33. Re4 {[%emt 0:00:00]} Rxg4+ {[%emt 0:00:06]} 34. Kxg4 {[%emt 0:00:00]} Rxe4+ {[%emt 0:00:01] KR-KR} 35. Kf5 {[%emt 0:00:01]} Rc4 {[%emt 0:00:02]} 36. a3 {[%emt 0:00:06]} a5 {[%emt 0:00:08]} 37. bxa5 {[%emt 0:00:09]} Ra4 {[%emt 0:00:01][%csl LRa3,LRa5]} 38. Kg6 {[%emt 0:00:02][%cal Rb7b8]} Rg4+ {[%emt 0:00:01]} 39. Kf5 {[%emt 0:00:01]} Ra4 {[%emt 0:00:00][%csl LRa3,LRa5]} 40. Kg6 {[%emt 0:00:06][%cal Rb7b8]} Rg4+ {[%emt 0:00:01]} 41. Kf5 {[%emt 0:00:01]} Ra4 {[%emt 0:00:00][%csl LRa3,LRa5] Weighted Error Value: White=0.08 (flawless) /Black=0.10 (very precise) .  Mistake:       	White=1     	Black=1      Inaccurate:     	White=2     	Black=1      OK:         	White=17    	Black=17     Best:        	White=2     	Black=2      Strong:       	---       	Black=1} 1/2-1/2

[Event "CCT Chessable Masters D-I 2024"]
[Site "Online"]
[Date "2024.02.02"]
[Round "1"]
[White "Bigfish"]
[Black "Firouzja, Alireza"]
[Result "0-1"]
[ECO "C67"]
[WhiteElo "2791"]
[BlackElo "2759"]
[Annotator "RC"]
[PlyCount "148"]
[EventDate "2024.01.12"]
[EventType "k.o."]
[EventCountry "NET"]
[SourceTitle "playchess.com"]
[Source "ChessBase"]
[SourceQuality "1"]
[TimeControl "600+2"]

1. e4 {[%emt 0:00:06]} e5 {[%emt 0:00:03]} 2. Nf3 {[%emt 0:00:08]} Nc6 {[%emt 0:00:01]} 3. Bb5 {[%emt 0:00:01]} Nf6 {[%emt 0:00:01]} 4. O-O {[%emt 0:00:15]} Nxe4 {[%emt 0:00:01]} 5. d4 {[%emt 0:00:14]} Nd6 {[%emt 0:00:02]} 6. Bxc6 {[%emt 0:00:00]} dxc6 {[%emt 0:00:00]} 7. dxe5 {[%emt 0:00:01]} Nf5 {[%emt 0:00:01]} 8. Qxd8+ {[%emt 0:00:00]} Kxd8 {[%emt 0:00:01]} 9. h3 {[%emt 0:00:05]} h6 {[%emt 0:00:14]} 10. Nc3 {[%emt 0:00:11]} Bd7 {[%emt 0:00:13]} 11. b3 {[%emt 0:00:12]} c5 {[%emt 0:00:12]} 12. Rd1 {[%emt 0:00:14]} Kc8 {[%emt 0:00:04]} 13. Bb2 {[%emt 0:00:36]} Be6 {[%emt 0:00:49]} 14. Nd5 {[%emt 0:00:12]} g5 {[%emt 0:00:08]} 15. c4 {[%emt 0:00:20]} b6 {[%emt 0:00:10]} 16. Nf6 {[%emt 0:01:20]} Kb7 {[%emt 0:00:22]} 17. g4 {[%emt 0:00:05]} Ne7 {[%emt 0:00:04]} 18. Kg2 {[%emt 0:00:02]} Ng6 {[%emt 0:00:28]} 19. Kg3 {[%emt 0:00:05]} Be7 {[%emt 0:00:37]} 20. Rd2 {[%emt 0:00:09]} a5 {[%emt 0:00:26]} 21. a4 {[%emt 0:00:18]} Rhd8 {[%emt 0:01:03]} 22. Rad1 {[%emt 0:00:05]} Rxd2 {[%emt 0:00:01]} 23. Rxd2 {[%emt 0:00:00]} b5 {[%emt 0:00:06]} 24. Nd5 {[%emt 0:00:40]} bxc4 {[%emt 0:00:01]} 25. bxc4 {[%emt 0:00:04]} Kc6 {[%emt 0:00:52]} 26. Bc3 {[%emt 0:01:03]} Bd8 {[%emt 0:00:27]} 27. Rd3 {[%emt 0:00:06]} Nf4 {[%emt 0:00:41]} 28. Nxf4 {[%emt 0:00:06]} gxf4+ {[%emt 0:00:00]} 29. Kxf4 {[%emt 0:00:01]} Bxc4 {[%emt 0:00:01]} 30. Rd2 {[%emt 0:00:03]} Bb3 {[%emt 0:00:12]} 31. h4 {[%emt 0:00:25]} Be7 {[%emt 0:00:22]} 32. g5 {[%emt 0:00:04]} hxg5+ {[%emt 0:00:19]} 33. Nxg5 {[%emt 0:00:12]} Bxa4 {[%emt 0:00:11]} 34. Nxf7 {[%emt 0:01:09]} Bb3 {[%emt 0:00:16]} 35. Ng5 {[%emt 0:00:04]} a4 {[%emt 0:00:12]} 36. Kg4 {[%emt 0:00:30]} a3 {[%emt 0:00:17]} 37. f4 {[%emt 0:00:01]} a2 {[%emt 0:00:05]} 38. f5 {[%emt 0:00:15]} c4 {[%emt 0:00:26]} 39. Ba1 {[%emt 0:00:03]} Bb4 {[%emt 0:00:04]} 40. Rd4 {[%emt 0:00:02]} Kb5 {[%emt 0:01:22]} 41. Ne4 {[%emt 0:00:11]} Bc2 {[%emt 0:00:01]} 42. f6 {[%emt 0:00:14]} c5 {[%emt 0:00:27]} 43. Nd6+ {[%emt 0:00:02]} Kc6 {[%emt 0:00:01]} 44. Rxc4 {[%emt 0:00:05]} Bb3 {[%emt 0:00:01]} 45. Rf4 {[%emt 0:00:13]} Be6+ {[%emt 0:00:02]} 46. Kh5 {[%emt 0:00:06]} Rh8+ {[%emt 0:00:01]} 47. Kg6 {[%emt 0:00:02]} Rg8+ {[%emt 0:00:00]} 48. Kh7 {[%emt 0:00:02]} Rg1 {[%emt 0:00:01]} 49. f7 {[%emt 0:00:22]} Bxf7 {[%emt 0:00:01]} 50. Rxf7 {[%emt 0:00:01]} Rxa1 {[%emt 0:00:01]} 51. Ra7 {[%emt 0:00:01]} Kd5 {[%emt 0:00:01]} 52. Nf5 {[%emt 0:00:17]} Kxe5 {[%emt 0:00:05]} 53. Ne3 {[%emt 0:00:00]} Rh1 {[%emt 0:00:07]} 54. Rxa2 {[%emt 0:00:03]} Rxh4+ {[%emt 0:00:02]} 55. Kg6 {[%emt 0:00:00]} Ke4 {[%emt 0:00:01]} 56. Kg5 {[%emt 0:00:06]} Rh3 {[%emt 0:00:01]} 57. Nc4 {[%emt 0:00:02]} Kd4 {[%emt 0:00:01]} 58. Nb6 {[%emt 0:00:02]} Rb3 {[%emt 0:00:04]} 59. Kf5 {[%emt 0:00:07]} Bc3 {[%emt 0:00:01]} 60. Nd7 {[%emt 0:00:06]} c4 {[%emt 0:00:02]} 61. Ra6 {[%emt 0:00:02]} Rb5+ {[%emt 0:00:01]} 62. Ke6 {[%emt 0:00:02]} Bb4 {[%emt 0:00:01]} 63. Rc6 {[%emt 0:00:14]} c3 {[%emt 0:00:01]} 64. Kf7 {[%emt 0:00:06]} Bc5 {[%emt 0:00:03]} 65. Rh6 {[%emt 0:00:06]} c2 {[%emt 0:00:02]} 66. Rh4+ {[%emt 0:00:00]} Kc3 {[%emt 0:00:03]} 67. Rh3+ {[%emt 0:00:02]} Kd2 {[%emt 0:00:04]} 68. Rh2+ {[%emt 0:00:02]} Kd1 {[%emt 0:00:01]} 69. Rh1+ {[%emt 0:00:00]} Ke2 {[%emt 0:00:01]} 70. Ne5 {[%emt 0:00:06]} Rb1 {[%emt 0:00:01]} 71. Rh2+ {[%emt 0:00:01]} Bf2 {[%emt 0:00:01]} 72. Ng4 {[%emt 0:00:03]} c1=Q {[%emt 0:00:01]} 73. Rxf2+ {[%emt 0:00:01]} Ke1 {[%emt 0:00:00]} 74. Rf5 {[%emt 0:00:01]} Qc4+ {[%emt 0:00:01]} 0-1

[Event "CCT Chessable Masters D-I 2024"]
[Site "Online"]
[Date "2024.02.02"]
[Round "1"]
[White "Nepomniachtchi, Ian"]
[Black "Martinez Alcantara, Jose Eduardo"]
[Result "1/2-1/2"]
[ECO "C84"]
[WhiteElo "2769"]
[BlackElo "2610"]
[Annotator "TA"]
[PlyCount "146"]
[EventDate "2024.01.12"]
[EventType "k.o."]
[EventCountry "NET"]
[SourceTitle "playchess.com"]
[Source "ChessBase"]
[SourceQuality "1"]
[TimeControl "600+2"]

{[%evp 53,146,36,45,24,28,25,45,24,24,5,4,-29,-14,-33,0,-20,0,0,7,0,0,0,0,0,0,0,0,0,11,0,15,12,22,0,20,27,35,29,49,0,0,0,0,0,0,0,0,0,0,0,0,0,0,0,0,0,0,0,0,0,0,0,0,-14,0,0,0,0,0,0,0,0,0,0,0,0,0,0,0,0,0,0,0,0,0,0,0,0,0,0,0,0,0,0,0]} 1. e4 {[%emt 0:00:02]} e5 {[%emt 0:00:05]} 2. Nf3 {[%emt 0:00:01]} Nc6 {[%emt 0:00:01]} 3. Bb5 {[%emt 0:00:01]} a6 {[%emt 0:00:09]} 4. Ba4 {[%emt 0:00:01]} Nf6 {[%emt 0:00:01]} 5. O-O {[%emt 0:00:01]} Be7 {[%emt 0:00:01]} 6. d3 {[%emt 0:00:02]} d6 {[%emt 0:00:05]} 7. c3 {[%emt 0:00:02]} O-O {[%emt 0:00:01]} 8. h3 {[%emt 0:00:06] C84: Closed Ruy Lopez: Unusual White 6th moves.} Re8 {[%emt 0:00:10]} 9. Be3 {[%emt 0:00:06]} Bf8 {[%emt 0:00:06]} 10. Nbd2 {[%emt 0:00:01]} g6 $146 {[%emt 0:00:13]} ({Predecessor:} 10... h6 11. Bxc6 bxc6 12. b4 a5 13. Nc4 axb4 14. cxb4 Ba6 15. Qb3 Qc8 16. Rfc1 Rb8 {½-½ Alekseev,E (2622)-Inarkiev,E (2686) RUS-chT 25th 2018 (7.2)}) 11. Re1 {[%emt 0:00:20]} Bg7 {[%emt 0:00:03]} 12. Bb3 {[%emt 0:00:15]} h6 {[%emt 0:00:36]} 13. a4 {[%emt 0:00:05]} d5 {[%emt 0:00:18]} 14. Qc2 {[%emt 0:00:17]} Be6 {[%emt 0:00:27]} 15. Rad1 {[%emt 0:00:17]} dxe4 {[%emt 0:01:00]} 16. dxe4 {[%emt 0:00:03]} Qe7 {[%emt 0:00:01]} 17. Bc4 {[%emt 0:00:09]} Bxc4 {[%emt 0:00:12]} 18. Nxc4 {[%emt 0:00:03]} Qe6 {[%emt 0:00:00]} 19. Nfd2 {[%emt 0:00:04]} Bf8 {[%emt 0:00:53]} 20. b4 {[%emt 0:00:06]} Red8 {[%emt 0:00:19]} 21. Nb2 {[%emt 0:00:54]} Nb8 {[%emt 0:00:38]} 22. Nb3 {[%emt 0:00:17]} Rxd1 {[%emt 0:00:14]} 23. Rxd1 {[%emt 0:00:02]} Nbd7 {[%emt 0:00:01]} 24. f3 {[%emt 0:00:09]} Rc8 {[%emt 0:00:28]} 25. Nd3 {[%emt 0:00:36]} b6 {[%emt 0:00:23]} 26. c4 {[%emt 0:00:18]} c5 {[%emt 0:00:40]} 27. bxc5 {[%emt 0:00:16]} bxc5 {[%emt 0:00:14]} 28. Rb1 {[%emt 0:00:04]} Ne8 {[%emt 0:01:25]} 29. Nd2 {[%emt 0:00:27]} Qc6 {[%emt 0:00:12]} 30. a5 {[%emt 0:00:07]} Nc7 {[%emt 0:00:07]} 31. Qb2 {[%emt 0:01:24]} Qd6 {[%emt 0:00:02]} 32. Qc3 {[%emt 0:00:13]} Ne6 {[%emt 0:00:19]} 33. Kh1 {[%emt 0:00:02]} Qc7 {[%emt 0:00:06]} 34. Bf2 {[%emt 0:00:06]} Bg7 {[%emt 0:00:05]} 35. Nf1 {[%emt 0:00:02]} Rb8 {[%emt 0:00:04]} 36. Rxb8+ {[%emt 0:00:13]} Qxb8 {[%emt 0:00:00]} 37. Ne3 {[%emt 0:00:01]} Qb1+ {[%emt 0:00:18]} 38. Kh2 {[%emt 0:00:02]} Nf4 {[%emt 0:00:13]} 39. Nc1 {[%emt 0:00:16]} Kh7 {[%emt 0:00:17]} 40. Qc2 {[%emt 0:00:15]} Qa1 {[%emt 0:00:11]} 41. Nb3 {[%emt 0:00:07]} Qa4 {[%emt 0:00:05]} 42. Nd5 {[%emt 0:00:12]} Ne6 {[%emt 0:00:02]} 43. Be1 {[%emt 0:00:23]} Qc6 {[%emt 0:00:07]} 44. Nc1 {[%emt 0:00:13]} h5 {[%emt 0:00:02]} 45. Nd3 {[%emt 0:00:05]} Qb7 {[%emt 0:00:09]} 46. Qb2 {[%emt 0:00:02]} (46. Qa4 $14) 46... Qxb2 $11 {[%emt 0:00:03]} 47. Nxb2 {[%emt 0:00:00]} Bf8 {[%emt 0:00:14]} 48. Na4 {[%emt 0:00:10]} Kg7 {[%emt 0:00:05]} 49. Bh4 {[%emt 0:00:12]} g5 {[%emt 0:00:01]} 50. Be1 {[%emt 0:00:04]} h4 {[%emt 0:00:02]} 51. Nab6 {[%emt 0:00:16]} Nb8 {[%emt 0:00:02]} 52. g3 {[%emt 0:00:09]} hxg3+ {[%emt 0:00:02]} 53. Kxg3 {[%emt 0:00:00]} Nc6 {[%emt 0:00:06]} 54. Kg4 {[%emt 0:00:03]} Kg6 {[%emt 0:00:07]} 55. Nd7 {[%emt 0:00:06]} Bd6 {[%emt 0:00:00]} 56. N7f6 {[%emt 0:00:16]} Be7 {[%emt 0:00:04]} 57. Nd7 {[%emt 0:00:09]} Bd8 {[%emt 0:00:01]} 58. N7b6 {[%emt 0:00:09]} Ned4 {[%emt 0:00:03]} 59. Nd7 {[%emt 0:00:20]} Nb3 {[%emt 0:00:03]} 60. Bf2 {[%emt 0:00:14]} Nbxa5 {[%emt 0:00:02]} 61. Nxc5 {[%emt 0:00:03]} Nxc4 {[%emt 0:00:01]} 62. Nxa6 {[%emt 0:00:01]} Nd6 {[%emt 0:00:04]} 63. Nc5 {[%emt 0:00:03]} f5+ {[%emt 0:00:00]} 64. exf5+ {[%emt 0:00:01]} Nxf5 {[%emt 0:00:01]} 65. Ne6 {[%emt 0:00:02]} Nh6+ {[%emt 0:00:01]} 66. Kg3 {[%emt 0:00:01]} Nf7 {[%emt 0:00:01]} 67. Bc5 {[%emt 0:00:07]} Kf5 {[%emt 0:00:02]} 68. Nf8 {[%emt 0:00:06]} e4 {[%emt 0:00:01]} 69. Ne3+ {[%emt 0:00:05]} Ke5 {[%emt 0:00:01]} 70. Nd7+ {[%emt 0:00:13]} Ke6 {[%emt 0:00:02]} 71. Nf8+ {[%emt 0:00:04]} Ke5 {[%emt 0:00:00]} 72. Nd7+ {[%emt 0:00:08]} Ke6 {[%emt 0:00:01]} 73. Nf8+ {[%emt 0:00:00]} Ke5 {[%emt 0:00:00]} 1/2-1/2